{"text_format":"1","workbook":"xlsx","n_sheets":3,"sheets":["Sheet1","Sheet2","Sheet3"],"not_rendered":{"charts":1,"images":0,"macros":1,"external_links":0,"defined_names":0,"comments":0,"pivot_tables":0},"unopened":[],"bounds":{"document_bytes":16777216,"sheet_cells":100000,"rows_first":2000,"rows_last":500,"rows_between":2000,"halvings":0,"cell_chars":16384,"cell_head_chars":4096},"cells_cut":0,"cells_raw":0,"read":"whole","date_system":"1900"}

{"sheet":"Sheet1","index":0,"n_rows":111,"n_cols":28,"rows_kept":111,"cut":false,"hidden":false,"merged":[]}
[1.1000000000000001,30,null,null,null,null,null,null,null,null,null,null,null,null,null,null,null,null,null,null,null,null,null,null,null,null,0.6,10]
[null,"週","無感染者\n(免疫なし）","感染者","治癒者\n(隔離者）",null,"感染率\n(1週間）","治癒率\n(1週間）",null,null,null,null,null,null,null,null,null,null,null,null,null,null,null,null,null,null,0.65,15]
[null,1,99,{"$f":"100-C3","v":1},0,null,{"$f":"G4*100&\"人\"","v":"1.5人"},{"$f":"H4*100& \" %\"","v":"70 %"},15,70,null,null,null,null,null,null,null,null,null,null,null,null,null,null,null,null,0.7,20]
[null,2,{"$f":"C3*(1-$G$4*D3)","v":97.515000000000001},{"$f":"D3*(1+$G$4*C3-$H$4)","v":1.7849999999999999},{"$f":"E3+D3*$H$4","v":0.7},null,{"$f":"I3/1000","v":1.4999999999999999E-2},{"$f":"J3/100","v":0.7},null,null,null,null,null,null,null,null,null,null,null,null,null,null,null,null,null,null,0.75,25]
[null,3,{"$f":"C4*(1-$G$4*D4)","v":94.904035875000005},{"$f":"D4*(1+$G$4*C4-$H$4)","v":3.1464641249999996},{"$f":"E4+D4*$H$4","v":1.9494999999999998},null,null,null,null,null,null,null,null,null,null,null,null,null,null,null,null,null,null,null,null,null,0.8,30]
[null,4,{"$f":"C5*(1-$G$4*D5)","v":90.424853712024003},{"$f":"D5*(1+$G$4*C5-$H$4)","v":5.4231214004760062},{"$f":"E5+D5*$H$4","v":4.1520248874999997},null,null,null,null,null,null,null,null,null,null,null,null,null,null,null,null,null,null,null,null,null,0.85,35]
[null,5,{"$f":"C6*(1-$G$4*D6)","v":83.069079322515165},{"$f":"D6*(1+$G$4*C6-$H$4)","v":8.9827108096516461},{"$f":"E6+D6*$H$4","v":7.9482098678332038},null,null,null,null,null,null,null,null,null,null,null,null,null,null,null,null,null,null,null,null,null,0.9,40]
[null,6,{"$f":"C7*(1-$G$4*D7)","v":71.876296570842669},{"$f":"D7*(1+$G$4*C7-$H$4)","v":13.887595994567999},{"$f":"E7+D7*$H$4","v":14.236107434589357},null,null,null,null,null,null,null,null,null,null,null,null,null,null,null,null,null,null,null,null,null,0.95,45]
[null,7,{"$f":"C8*(1-$G$4*D8)","v":56.903462045418422},{"$f":"D8*(1+$G$4*C8-$H$4)","v":19.139113323794643},{"$f":"E8+D8*$H$4","v":23.957424630786953},null,null,null,null,null,null,null,null,null,null,null,null,null,null,null,null,null,null,null,null,null,1,50]
[null,8,{"$f":"C9*(1-$G$4*D9)","v":40.567234916365763},{"$f":"D9*(1+$G$4*C9-$H$4)","v":22.077961126191052},{"$f":"E9+D9*$H$4","v":37.354803957443202},null,null,null,null,null,null,null,null,null,null,null,null,null,null,null,null,null,null,null,null,null,1.05,55]
[null,9,{"$f":"C10*(1-$G$4*D10)","v":27.132607384157005},{"$f":"D10*(1+$G$4*C10-$H$4)","v":20.058015870066075},{"$f":"E10+D10*$H$4","v":52.809376745776937},null,null,null,null,null,null,null,null,null,null,null,null,null,null,null,null,null,null,null,null,null,1.1000000000000001,60]
[null,10,{"$f":"C11*(1-$G$4*D11)","v":18.969213341541607},{"$f":"D11*(1+$G$4*C11-$H$4)","v":14.180798803635222},{"$f":"E11+D11*$H$4","v":66.849987854823183},null,null,null,null,null,null,null,null,null,null,null,null,null,null,null,null,null,null,null,null,null,1.1499999999999999,65]
[null,11,{"$f":"C12*(1-$G$4*D12)","v":14.934234373647088},{"$f":"D12*(1+$G$4*C12-$H$4)","v":8.2892186089850846},{"$f":"E12+D12*$H$4","v":76.776547017367832},null,null,null,null,null,null,null,null,null,null,null,null,null,null,null,null,null,null,null,null,null,1.2,70]
[null,12,{"$f":"C13*(1-$G$4*D13)","v":13.077337371432387},{"$f":"D13*(1+$G$4*C13-$H$4)","v":4.3436625849102279},{"$f":"E13+D13*$H$4","v":82.579000043657388},null,null,null,null,null,null,null,null,null,null,null,null,null,null,null,null,null,null,null,null,null,1.25,75]
[null,13,{"$f":"C14*(1-$G$4*D14)","v":12.2252842556743},{"$f":"D14*(1+$G$4*C14-$H$4)","v":2.1551518912311551},{"$f":"E14+D14*$H$4","v":85.619563853094547},null,null,null,null,null,null,null,null,null,null,null,null,null,null,null,null,null,null,null,null,null,1.3,80]
[null,14,{"$f":"C15*(1-$G$4*D15)","v":11.830074088407475},{"$f":"D15*(1+$G$4*C15-$H$4)","v":1.0417557346361708},{"$f":"E15+D15*$H$4","v":87.12817017695636},null,"免疫",null,null,null,null,null,null,null,null,null,null,null,null,null,null,null,null,null,null,null,1.35,85]
[null,15,{"$f":"C16*(1-$G$4*D16)","v":11.645213375565936},{"$f":"D16*(1+$G$4*C16-$H$4)","v":0.49738743323239015},{"$f":"E16+D16*$H$4","v":87.857399191201679},null,null,null,null,null,null,null,null,null,null,null,null,null,null,null,null,null,null,null,null,null,1.4,90]
[null,16,{"$f":"C17*(1-$G$4*D17)","v":11.558330633711192},{"$f":"D17*(1+$G$4*C17-$H$4)","v":0.23609897182446066},{"$f":"E17+D17*$H$4","v":88.205570394464345},null,null,null,null,null,null,null,null,null,null,null,null,null,null,null,null,null,null,null,null,null,1.45,95]
[null,17,{"$f":"C18*(1-$G$4*D18)","v":11.517396984031796},{"$f":"D18*(1+$G$4*C18-$H$4)","v":0.11176334122673391},{"$f":"E18+D18*$H$4","v":88.370839674741461},null,null,null,null,null,null,null,null,null,null,null,null,null,null,null,null,null,null,null,null,null,1.5]
[null,18,{"$f":"C19*(1-$G$4*D19)","v":11.498088642494245},{"$f":"D19*(1+$G$4*C19-$H$4)","v":5.2837343905571703E-2},{"$f":"E19+D19*$H$4","v":88.449074013600182},null,null,null,null,null,null,null,null,null,null,null,null,null,null,null,null,null,null,null,null,null,1.55]
[null,19,{"$f":"C20*(1-$G$4*D20)","v":11.488975715536343},{"$f":"D20*(1+$G$4*C20-$H$4)","v":2.4964130129574758E-2},{"$f":"E20+D20*$H$4","v":88.486060154334083},null,null,null,null,null,null,null,null,null,null,null,null,null,null,null,null,null,null,null,null,null,1.6]
[null,20,{"$f":"C21*(1-$G$4*D21)","v":11.484673531264072},{"$f":"D21*(1+$G$4*C21-$H$4)","v":1.179142331114503E-2},{"$f":"E21+D21*$H$4","v":88.503535045424783},null,null,null,null,null,null,null,null,null,null,null,null,null,null,null,null,null,null,null,null,null,1.65]
[null,21,{"$f":"C22*(1-$G$4*D22)","v":11.482642221556111},{"$f":"D22*(1+$G$4*C22-$H$4)","v":5.5687367013050717E-3},{"$f":"E22+D22*$H$4","v":88.511789041742588},null,null,null,null,null,null,null,null,null,null,null,null,null,null,null,null,null,null,null,null,null,1.7]
[null,22,{"$f":"C23*(1-$G$4*D23)","v":11.481683064388603},{"$f":"D23*(1+$G$4*C23-$H$4)","v":2.629778177898542E-3},{"$f":"E23+D23*$H$4","v":88.515687157433504},null,null,null,null,null,null,null,null,null,null,null,null,null,null,null,null,null,null,null,null,null,1.75]
[null,23,{"$f":"C24*(1-$G$4*D24)","v":11.481230150195078},{"$f":"D24*(1+$G$4*C24-$H$4)","v":1.2418476468937091E-3},{"$f":"E24+D24*$H$4","v":88.517528002158031},null,null,null,null,null,null,null,null,null,null,null,null,null,null,null,null,null,null,null,null,null,1.8]
[null,24,{"$f":"C25*(1-$G$4*D25)","v":11.481016281115396},{"$f":"D25*(1+$G$4*C25-$H$4)","v":5.8642337375008576E-4},{"$f":"E25+D25*$H$4","v":88.518397295510852},null,null,null,null,null,null,null,null,null,null,null,null,null,null,null,null,null,null,null,null,null,1.85]
[null,null,null,null,null,null,null,null,null,null,null,null,null,null,null,null,null,null,null,null,null,null,null,null,null,null,1.9]
[null,null,null,null,null,null,null,null,null,null,null,null,null,null,null,null,null,null,null,null,null,null,null,null,null,null,1.95]
[null,null,null,null,null,null,null,null,null,null,null,null,null,null,null,null,null,null,null,null,null,null,null,null,null,null,2]
[null,null,null,null,null,null,null,null,null,null,null,null,null,null,null,null,null,null,null,null,null,null,null,null,null,null,2.0499999999999998]
[null,null,null,null,null,null,null,null,null,null,null,null,null,null,null,null,null,null,null,null,null,null,null,null,null,null,2.1]
[null,null,null,null,null,null,null,null,null,null,null,null,null,null,null,null,null,null,null,null,null,null,null,null,null,null,2.15]
[null,null,null,null,null,null,null,null,null,null,null,null,null,null,null,null,null,null,null,null,null,null,null,null,null,null,2.2000000000000002]
[null,null,null,null,null,null,null,null,null,null,null,null,null,null,null,null,null,null,null,null,null,null,null,null,null,null,2.25]
[null,null,null,null,null,null,null,null,null,null,null,null,null,null,null,null,null,null,null,null,null,null,null,null,null,null,2.2999999999999998]
[null,null,null,null,null,null,null,null,null,null,null,null,null,null,null,null,null,null,null,null,null,null,null,null,null,null,2.35]
[null,null,null,null,null,null,null,null,null,null,null,null,null,null,null,null,null,null,null,null,null,null,null,null,null,null,2.4]
[null,null,null,null,null,null,null,null,null,null,null,null,null,null,null,null,null,null,null,null,null,null,null,null,null,null,2.4500000000000002]
[null,null,null,null,null,null,null,null,null,null,null,null,null,null,null,null,null,null,null,null,null,null,null,null,null,null,2.5]
[null,null,null,null,null,null,null,null,null,null,null,null,null,null,null,null,null,null,null,null,null,null,null,null,null,null,2.5499999999999998]
[null,null,null,null,null,null,null,null,null,null,null,null,null,null,null,null,null,null,null,null,null,null,null,null,null,null,2.6]
[null,null,null,null,null,null,null,null,null,null,null,null,null,null,null,null,null,null,null,null,null,null,null,null,null,null,2.65]
[null,null,null,null,null,null,null,null,null,null,null,null,null,null,null,null,null,null,null,null,null,null,null,null,null,null,2.7]
[null,null,null,null,null,null,null,null,null,null,null,null,null,null,null,null,null,null,null,null,null,null,null,null,null,null,2.75]
[null,null,null,null,null,null,null,null,null,null,null,null,null,null,null,null,null,null,null,null,null,null,null,null,null,null,2.8]
[null,null,null,null,null,null,null,null,null,null,null,null,null,null,null,null,null,null,null,null,null,null,null,null,null,null,2.85]
[null,null,null,null,null,null,null,null,null,null,null,null,null,null,null,null,null,null,null,null,null,null,null,null,null,null,2.9]
[null,null,null,null,null,null,null,null,null,null,null,null,null,null,null,null,null,null,null,null,null,null,null,null,null,null,2.95]
[null,null,null,null,null,null,null,null,null,null,null,null,null,null,null,null,null,null,null,null,null,null,null,null,null,null,3]
[null,null,null,null,null,null,null,null,null,null,null,null,null,null,null,null,null,null,null,null,null,null,null,null,null,null,3.05]
[null,null,null,null,null,null,null,null,null,null,null,null,null,null,null,null,null,null,null,null,null,null,null,null,null,null,3.1]
[null,null,null,null,null,null,null,null,null,null,null,null,null,null,null,null,null,null,null,null,null,null,null,null,null,null,3.15]
[null,null,null,null,null,null,null,null,null,null,null,null,null,null,null,null,null,null,null,null,null,null,null,null,null,null,3.2]
[null,null,null,null,null,null,null,null,null,null,null,null,null,null,null,null,null,null,null,null,null,null,null,null,null,null,3.25]
[null,null,null,null,null,null,null,null,null,null,null,null,null,null,null,null,null,null,null,null,null,null,null,null,null,null,3.3]
[null,null,null,null,null,null,null,null,null,null,null,null,null,null,null,null,null,null,null,null,null,null,null,null,null,null,3.35]
[null,null,null,null,null,null,null,null,null,null,null,null,null,null,null,null,null,null,null,null,null,null,null,null,null,null,3.4]
[null,null,null,null,null,null,null,null,null,null,null,null,null,null,null,null,null,null,null,null,null,null,null,null,null,null,3.45]
[null,null,null,null,null,null,null,null,null,null,null,null,null,null,null,null,null,null,null,null,null,null,null,null,null,null,3.5]
[null,null,null,null,null,null,null,null,null,null,null,null,null,null,null,null,null,null,null,null,null,null,null,null,null,null,3.55]
[null,null,null,null,null,null,null,null,null,null,null,null,null,null,null,null,null,null,null,null,null,null,null,null,null,null,3.6]
[null,null,null,null,null,null,null,null,null,null,null,null,null,null,null,null,null,null,null,null,null,null,null,null,null,null,3.65]
[null,null,null,null,null,null,null,null,null,null,null,null,null,null,null,null,null,null,null,null,null,null,null,null,null,null,3.7]
[null,null,null,null,null,null,null,null,null,null,null,null,null,null,null,null,null,null,null,null,null,null,null,null,null,null,3.75]
[null,null,null,null,null,null,null,null,null,null,null,null,null,null,null,null,null,null,null,null,null,null,null,null,null,null,3.8]
[null,null,null,null,null,null,null,null,null,null,null,null,null,null,null,null,null,null,null,null,null,null,null,null,null,null,3.85]
[null,null,null,null,null,null,null,null,null,null,null,null,null,null,null,null,null,null,null,null,null,null,null,null,null,null,3.9]
[null,null,null,null,null,null,null,null,null,null,null,null,null,null,null,null,null,null,null,null,null,null,null,null,null,null,3.95]
[null,null,null,null,null,null,null,null,null,null,null,null,null,null,null,null,null,null,null,null,null,null,null,null,null,null,4]
[null,null,null,null,null,null,null,null,null,null,null,null,null,null,null,null,null,null,null,null,null,null,null,null,null,null,4.05]
[null,null,null,null,null,null,null,null,null,null,null,null,null,null,null,null,null,null,null,null,null,null,null,null,null,null,4.0999999999999996]
[null,null,null,null,null,null,null,null,null,null,null,null,null,null,null,null,null,null,null,null,null,null,null,null,null,null,4.1500000000000004]
[null,null,null,null,null,null,null,null,null,null,null,null,null,null,null,null,null,null,null,null,null,null,null,null,null,null,4.2]
[null,null,null,null,null,null,null,null,null,null,null,null,null,null,null,null,null,null,null,null,null,null,null,null,null,null,4.25]
[null,null,null,null,null,null,null,null,null,null,null,null,null,null,null,null,null,null,null,null,null,null,null,null,null,null,4.3]
[null,null,null,null,null,null,null,null,null,null,null,null,null,null,null,null,null,null,null,null,null,null,null,null,null,null,4.3499999999999996]
[null,null,null,null,null,null,null,null,null,null,null,null,null,null,null,null,null,null,null,null,null,null,null,null,null,null,4.4000000000000004]
[null,null,null,null,null,null,null,null,null,null,null,null,null,null,null,null,null,null,null,null,null,null,null,null,null,null,4.45]
[null,null,null,null,null,null,null,null,null,null,null,null,null,null,null,null,null,null,null,null,null,null,null,null,null,null,4.5]
[null,null,null,null,null,null,null,null,null,null,null,null,null,null,null,null,null,null,null,null,null,null,null,null,null,null,4.55]
[null,null,null,null,null,null,null,null,null,null,null,null,null,null,null,null,null,null,null,null,null,null,null,null,null,null,4.5999999999999996]
[null,null,null,null,null,null,null,null,null,null,null,null,null,null,null,null,null,null,null,null,null,null,null,null,null,null,4.6500000000000004]
[null,null,null,null,null,null,null,null,null,null,null,null,null,null,null,null,null,null,null,null,null,null,null,null,null,null,4.7]
[null,null,null,null,null,null,null,null,null,null,null,null,null,null,null,null,null,null,null,null,null,null,null,null,null,null,4.75]
[null,null,null,null,null,null,null,null,null,null,null,null,null,null,null,null,null,null,null,null,null,null,null,null,null,null,4.8]
[null,null,null,null,null,null,null,null,null,null,null,null,null,null,null,null,null,null,null,null,null,null,null,null,null,null,4.8499999999999996]
[null,null,null,null,null,null,null,null,null,null,null,null,null,null,null,null,null,null,null,null,null,null,null,null,null,null,4.9000000000000004]
[null,null,null,null,null,null,null,null,null,null,null,null,null,null,null,null,null,null,null,null,null,null,null,null,null,null,4.95]
[null,null,null,null,null,null,null,null,null,null,null,null,null,null,null,null,null,null,null,null,null,null,null,null,null,null,5]
[null,null,null,null,null,null,null,null,null,null,null,null,null,null,null,null,null,null,null,null,null,null,null,null,null,null,5.05]
[null,null,null,null,null,null,null,null,null,null,null,null,null,null,null,null,null,null,null,null,null,null,null,null,null,null,5.0999999999999996]
[null,null,null,null,null,null,null,null,null,null,null,null,null,null,null,null,null,null,null,null,null,null,null,null,null,null,5.15]
[null,null,null,null,null,null,null,null,null,null,null,null,null,null,null,null,null,null,null,null,null,null,null,null,null,null,5.2]
[null,null,null,null,null,null,null,null,null,null,null,null,null,null,null,null,null,null,null,null,null,null,null,null,null,null,5.25]
[null,null,null,null,null,null,null,null,null,null,null,null,null,null,null,null,null,null,null,null,null,null,null,null,null,null,5.3]
[null,null,null,null,null,null,null,null,null,null,null,null,null,null,null,null,null,null,null,null,null,null,null,null,null,null,5.35]
[null,null,null,null,null,null,null,null,null,null,null,null,null,null,null,null,null,null,null,null,null,null,null,null,null,null,5.4]
[null,null,null,null,null,null,null,null,null,null,null,null,null,null,null,null,null,null,null,null,null,null,null,null,null,null,5.45]
[null,null,null,null,null,null,null,null,null,null,null,null,null,null,null,null,null,null,null,null,null,null,null,null,null,null,5.5]
[null,null,null,null,null,null,null,null,null,null,null,null,null,null,null,null,null,null,null,null,null,null,null,null,null,null,5.55]
[null,null,null,null,null,null,null,null,null,null,null,null,null,null,null,null,null,null,null,null,null,null,null,null,null,null,5.6]
[null,null,null,null,null,null,null,null,null,null,null,null,null,null,null,null,null,null,null,null,null,null,null,null,null,null,5.65]
[null,null,null,null,null,null,null,null,null,null,null,null,null,null,null,null,null,null,null,null,null,null,null,null,null,null,5.7]
[null,null,null,null,null,null,null,null,null,null,null,null,null,null,null,null,null,null,null,null,null,null,null,null,null,null,5.75]
[null,null,null,null,null,null,null,null,null,null,null,null,null,null,null,null,null,null,null,null,null,null,null,null,null,null,5.8]
[null,null,null,null,null,null,null,null,null,null,null,null,null,null,null,null,null,null,null,null,null,null,null,null,null,null,5.85]
[null,null,null,null,null,null,null,null,null,null,null,null,null,null,null,null,null,null,null,null,null,null,null,null,null,null,5.9]
[null,null,null,null,null,null,null,null,null,null,null,null,null,null,null,null,null,null,null,null,null,null,null,null,null,null,5.95]
[null,null,null,null,null,null,null,null,null,null,null,null,null,null,null,null,null,null,null,null,null,null,null,null,null,null,6]
[null,null,null,null,null,null,null,null,null,null,null,null,null,null,null,null,null,null,null,null,null,null,null,null,null,null,6.05]
[null,null,null,null,null,null,null,null,null,null,null,null,null,null,null,null,null,null,null,null,null,null,null,null,null,null,6.1000000000000103]

{"sheet":"Sheet2","index":1,"n_rows":0,"n_cols":0,"rows_kept":0,"cut":false,"hidden":false,"merged":[]}

{"sheet":"Sheet3","index":2,"n_rows":0,"n_cols":0,"rows_kept":0,"cut":false,"hidden":false,"merged":[]}